bitfinex-derivatives/quotes_BTCF0:USTF0_20251119
["timestamp","ask_amount","ask_price","bid_price","bid_amount"]
[1763542527275,0.3608,91448.0,91447.0,0.4194523]
[1763542527782,0.38315,91448.0,91447.0,0.4194523]
[1763542528073,0.40595,91448.0,91447.0,0.4194523]
[1763542530383,0.3608,91448.0,91447.0,0.4194523]
[1763542530681,0.38325594,91457.0,91456.0,0.1551216]
[1763542531283,0.40605594,91457.0,91456.0,0.1551216]
[1763542532581,0.3608,91474.0,91466.0,0.109399]
[1763542532783,0.04437,91470.0,91469.0,0.04232]
[1763542533886,0.3608,91474.0,91473.0,0.04232]
[1763542533887,0.40517,91474.0,91473.0,0.04232]
[1763542534774,0.04437,91474.0,91473.0,0.1517114]
[1763542534982,0.04437,91474.0,91473.0,0.40312]
[1763542535676,0.04537,91474.0,91473.0,0.40312]
[1763542535871,0.04537,91474.0,91473.0,0.3608]
[1763542536187,0.04437,91471.0,91470.0,0.00219803]
[1763542536381,0.1537708,91465.0,91464.0,0.3608]
[1763542536587,0.1537708,91465.0,91460.0,0.10541062]
[1763542536588,0.1537756,91461.0,91460.0,0.10760865]
[1763542536777,0.1537756,91461.0,91460.0,0.37188865]
[1763542536973,0.04437,91461.0,91460.0,0.37188865]
[1763542537180,0.04437,91461.0,91460.0,0.30879803]
[1763542538685,0.02163,91461.0,91460.0,0.30879803]
[1763542538887,0.05799,91469.0,91468.0,0.04232]
[1763542539475,0.04437,91469.0,91468.0,0.04232]
[1763542539776,0.05799,91476.0,91475.0,0.04232]
[1763542539976,0.04464327,91486.0,91485.0,0.04232]
[1763542540180,0.04464327,91486.0,91485.0,0.30656]
[1763542541192,0.04564327,91486.0,91485.0,0.30656]
[1763542541892,0.04664327,91486.0,91485.0,0.30656]
[1763542543082,0.04437,91481.0,91480.0,0.00219803]
[1763542543283,0.04437,91481.0,91480.0,0.26643803]
[1763542545188,0.04437,91481.0,91480.0,0.26639803]
[1763542545995,0.04437,91481.0,91480.0,0.30871803]
[1763542546195,0.04537,91481.0,91480.0,0.30871803]
[1763542548301,0.001,91481.0,91480.0,0.30871803]
[1763542549096,0.08367453,91506.0,91505.0,0.04232]
[1763542549400,0.04437,91506.0,91505.0,0.30652]
[1763542549994,0.1537278,91501.0,91500.0,0.00219803]
[1763542550195,0.1537278,91501.0,91500.0,0.26639803]
[1763542550387,0.04437,91501.0,91500.0,0.28759803]
[1763542550598,0.04437,91501.0,91500.0,0.30871803]
[1763542550994,0.04437,91504.0,91503.0,0.04232]
[1763542551502,0.05799,91504.0,91503.0,0.0212]
[1763542551692,0.05799,91504.0,91500.0,0.26639803]
[1763542551693,0.04437,91501.0,91500.0,0.26639803]
[1763542551892,0.04537,91501.0,91500.0,0.26639803]
[1763542552297,0.04537,91501.0,91500.0,0.28759803]
[1763542552497,0.1537278,91501.0,91500.0,0.00219803]
[1763542552799,0.1537278,91501.0,91496.0,0.000164]
[1763542552800,0.1673525,91497.0,91496.0,0.000164]
[1763542552995,0.1673525,91497.0,91496.0,0.264324]
[1763542553194,0.19473731,91497.0,91496.0,0.264324]
[1763542554693,0.08537481,91497.0,91496.0,0.264324]
[1763542554896,0.08637481,91497.0,91496.0,0.264324]
[1763542555605,0.08637481,91497.0,91496.0,0.000164]
[1763542555799,0.08537481,91497.0,91496.0,0.000164]
[1763542555996,0.08637481,91497.0,91496.0,0.264324]
[1763542556900,0.08637481,91497.0,91496.0,0.306644]
[1763542557102,0.07275481,91497.0,91496.0,0.306644]
[1763542557309,0.07275481,91497.0,91496.0,0.264324]
[1763542558194,0.07175481,91497.0,91496.0,0.264324]
[1763542558508,0.07275481,91497.0,91496.0,0.264324]
[1763542559004,0.07375481,91497.0,91496.0,0.264324]
[1763542559201,0.07275481,91497.0,91496.0,0.264324]
[1763542560003,0.07375481,91497.0,91496.0,0.264324]
[1763542560196,0.43455481,91497.0,91496.0,0.264324]
[1763542560393,0.43455481,91497.0,91478.0,0.40312]
[1763542560394,0.04437,91479.0,91478.0,0.40312]
[1763542560597,0.04437,91479.0,91478.0,0.66724]
[1763542561404,0.02163,91479.0,91478.0,0.66724]
[1763542562903,0.00016369,91488.0,91487.0,0.04476]
[1763542563121,0.00016369,91488.0,91487.0,0.66968]
[1763542563905,0.04234369,91488.0,91487.0,0.66968]
[1763542564611,0.04334369,91488.0,91487.0,0.66968]
[1763542566208,0.02228369,91488.0,91487.0,0.66968]
[1763542566512,0.00116369,91488.0,91487.0,0.66968]
[1763542568898,0.001,91488.0,91487.0,0.66968]
[1763542569100,0.01362,91512.0,91487.0,0.66968]
[1763542569101,0.04218,91509.0,91508.0,0.04476]
[1763542569414,0.06857789,91509.0,91508.0,0.30888]
[1763542570407,0.06857789,91509.0,91508.0,0.28586]
[1763542571008,0.06957789,91509.0,91508.0,0.28586]
[1763542571205,0.07057789,91509.0,91508.0,0.30888]
[1763542572916,0.04951789,91509.0,91508.0,0.30888]
[1763542573116,0.07057789,91509.0,91508.0,0.30888]
[1763542573917,0.07057789,91509.0,91508.0,0.26412]
[1763542574118,0.07057789,91509.0,91464.0,0.01356]
[1763542574119,0.04218,91483.0,91478.0,0.3608]
[1763542574303,0.04218,91479.0,91478.0,0.04476]
[1763542574507,0.04218,91479.0,91478.0,0.30888]
[1763542574911,0.06840887,91479.0,91478.0,0.30888]
[1763542575810,0.1515689,91475.0,91474.0,0.38254]
[1763542576009,0.1515689,91475.0,91474.0,0.64662]
[1763542576417,0.1515689,91475.0,91474.0,0.66964]
[1763542577022,0.04218,91475.0,91474.0,0.40556]
[1763542577221,0.04218,91475.0,91474.0,0.66968]
[1763542577617,0.04218,91475.0,91474.0,0.40556]
[1763542577812,0.04218,91475.0,91474.0,0.30888]
[1763542578019,0.04218,91475.0,91474.0,0.28586]
[1763542578215,0.06839936,91475.0,91474.0,0.28586]
[1763542578716,0.04218,91471.0,91470.0,0.02393803]
[1763542579018,0.1515736,91471.0,91470.0,0.31107803]
[1763542579906,0.04218,91471.0,91470.0,0.31107803]
[1763542580111,0.40298,91478.0,91477.0,0.04476]
[1763542580319,0.4291835,91478.0,91477.0,0.04476]
[1763542580523,0.1515738,91471.0,91470.0,0.30888]
[1763542580718,0.1515738,91471.0,91470.0,0.31107803]
[1763542583216,0.04218,91471.0,91470.0,0.31107803]
[1763542586225,0.04218,91471.0,91470.0,0.04695803]
[1763542586423,0.1529748,91470.0,91469.0,0.000164]
[1763542586627,0.1529928,91455.0,91454.0,0.40684]
[1763542586830,0.04358,91455.0,91454.0,0.780374]
[1763542587030,0.04358,91455.0,91454.0,0.67096]
[1763542587425,0.04358,91455.0,91454.0,0.31016]
[1763542587721,0.40438,91463.0,91462.0,0.04604]
[1763542588030,0.000164,91464.0,91463.0,0.1554432]
[1763542590218,0.000164,91464.0,91463.0,0.04604]
[1763542592936,0.40532,91483.0,91482.0,0.04323]
[1763542593133,0.41858,91483.0,91482.0,0.30739]
[1763542598735,0.5279594,91483.0,91482.0,0.30739]
[1763542599941,0.40532,91483.0,91482.0,0.30739]
[1763542600835,0.38265,91483.0,91482.0,0.30739]
[1763542601231,0.3608,91483.0,91482.0,0.31998]
[1763542601427,0.38265,91483.0,91482.0,0.31998]
[1763542601638,0.40532,91483.0,91482.0,0.30739]
[1763542602342,0.43293698,91483.0,91482.0,0.30739]
[1763542604242,0.41026698,91483.0,91482.0,0.30739]
[1763542604740,0.43293698,91483.0,91482.0,0.30739]
[1763542609234,0.38841698,91483.0,91482.0,0.31998]
[1763542609436,0.43293698,91483.0,91482.0,0.31998]
[1763542609735,0.43293698,91483.0,91482.0,0.30739]
[1763542610838,0.07213698,91483.0,91482.0,0.30739]
[1763542611431,0.18151628,91483.0,91482.0,0.30739]
[1763542612144,0.18153295,91483.0,91482.0,0.30739]
[1763542614247,0.07215365,91483.0,91482.0,0.30739]
[1763542614942,0.154053,91492.0,91491.0,0.04323]
[1763542615145,0.18168582,91492.0,91491.0,0.30735]
[1763542615533,0.07231682,91492.0,91491.0,0.30735]
[1763542617241,0.07331682,91492.0,91491.0,0.30735]
[1763542617442,0.05064682,91492.0,91491.0,0.30735]
[1763542617747,0.02879682,91492.0,91491.0,0.30735]
[1763542617947,0.02979682,91492.0,91491.0,0.30735]
[1763542618137,0.05164682,91492.0,91491.0,0.30735]
[1763542618646,0.02979682,91492.0,91491.0,0.4167199]
[1763542618845,0.002164,91492.0,91491.0,0.4167199]
[1763542619043,0.002164,91492.0,91491.0,0.7775199]
[1763542619542,0.002164,91492.0,91491.0,0.66815]
[1763542623042,0.40479,91501.0,91500.0,0.04314]
[1763542623242,0.43240945,91501.0,91500.0,0.30941803]
[1763542623551,0.40479,91501.0,91500.0,0.30941803]
[1763542624950,0.3608,91501.0,91500.0,0.32200803]
[1763542625349,0.166937,91510.0,91509.0,0.04398]
[1763542625550,0.08461116,91510.0,91509.0,0.30806]
[1763542625752,0.19395816,91510.0,91509.0,0.30806]
[1763542625955,0.07135116,91510.0,91509.0,0.30806]
[1763542628356,0.04433,91510.0,91509.0,0.4174082]
[1763542628857,0.04433,91510.0,91509.0,0.30806]
[1763542629660,0.07133307,91510.0,91509.0,0.30806]
[1763542630049,0.07133307,91510.0,91509.0,0.4174082]
[1763542630255,0.04919307,91510.0,91509.0,0.4174082]
[1763542630555,0.07133307,91510.0,91509.0,0.30806]
[1763542632354,0.04433,91510.0,91509.0,0.30806]
[1763542632563,0.04433,91512.0,91511.0,0.04398]
[1763542632871,0.07132215,91512.0,91511.0,0.04398]
[1763542633356,0.04433,91512.0,91511.0,0.04398]
[1763542633765,0.04533,91512.0,91511.0,0.04398]
[1763542633964,0.04633,91512.0,91511.0,0.04398]
[1763542635366,0.04633,91512.0,91511.0,0.1533258]
[1763542635570,0.04633,91512.0,91511.0,0.04398]
[1763542636764,0.01193377,91529.0,91511.0,0.40478]
[1763542636965,0.01172,91512.0,91511.0,0.40494391]
[1763542637169,0.03870659,91512.0,91511.0,0.66894391]
[1763542639470,0.03970659,91512.0,91511.0,0.66894391]
[1763542639668,0.01272,91512.0,91511.0,0.66894391]
[1763542643570,0.039564,91512.0,91511.0,0.66894391]
[1763542644168,0.01272,91512.0,91511.0,0.66894391]
[1763542644574,0.03957214,91512.0,91511.0,0.66894391]
[1763542646778,0.02785214,91512.0,91511.0,0.66894391]
[1763542646979,0.121053,91522.0,91521.0,0.04387]
[1763542647277,0.121053,91522.0,91521.0,0.30787]
[1763542647967,0.01172,91522.0,91521.0,0.30787]
[1763542648578,0.01272,91522.0,91521.0,0.30787]
[1763542650370,0.001,91522.0,91521.0,0.30787]
[1763542650973,0.05883631,91540.0,91539.0,0.04387]
[1763542651176,0.14689,91541.0,91540.0,0.05936803]
[1763542651479,0.03758,91541.0,91540.0,0.05936803]
[1763542659093,0.0640954,91541.0,91540.0,0.05936803]
[1763542663082,0.0640954,91541.0,91540.0,0.00219803]
[1763542663287,0.4248954,91541.0,91540.0,0.00219803]
[1763542663484,0.4248954,91541.0,91530.0,0.01346391]
[1763542663485,0.03758,91531.0,91530.0,0.00016391]
[1763542663685,0.5342173,91531.0,91530.0,0.26408391]
[1763542664696,0.5342173,91531.0,91530.0,0.00016391]
[1763542665596,0.1469138,91521.0,91520.0,0.62472]
[1763542665896,0.1734292,91521.0,91520.0,0.62472]
[1763542666488,0.1734292,91521.0,91520.0,0.66977803]
[1763542667702,0.1744292,91521.0,91520.0,0.66977803]
[1763542668300,0.0650954,91521.0,91520.0,0.66977803]
[1763542669394,0.0640954,91521.0,91520.0,0.66977803]
[1763542669595,0.0650954,91521.0,91520.0,0.66977803]
[1763542670197,0.0640954,91521.0,91520.0,0.66977803]
[1763542673302,0.0265154,91521.0,91520.0,0.66977803]
[1763542674104,0.0453054,91521.0,91520.0,0.66977803]
[1763542675703,0.0265154,91521.0,91520.0,0.66977803]
[1763542677404,0.0001636,91530.0,91529.0,0.1521843]
[1763542677707,0.0430836,91530.0,91529.0,0.30678]
[1763542678303,0.1524067,91530.0,91529.0,0.30678]
[1763542678700,0.1534067,91530.0,91529.0,0.30678]
[1763542680602,0.1534067,91530.0,91511.0,0.04302391]
[1763542680603,0.1522646,91512.0,91511.0,0.04302391]
[1763542680905,0.1522646,91512.0,91511.0,0.02150391]
[1763542681106,0.1522646,91512.0,91511.0,0.28542391]
[1763542681301,0.1522646,91512.0,91511.0,0.26408391]
[1763542681302,0.1651946,91512.0,91511.0,0.26408391]
[1763542681506,0.1651946,91512.0,91511.0,0.00016391]
[1763542681808,0.1651946,91512.0,91499.0,0.3608]
[1763542681809,0.1524178,91501.0,91500.0,0.26392]
[1763542683002,0.0057,91506.0,91491.0,0.00016391]
[1763542683003,0.1524285,91492.0,91491.0,0.30764391]
[1763542685103,0.04306,91492.0,91491.0,0.30764391]
[1763542685306,0.40386,91499.0,91498.0,0.04356]
[1763542685703,0.3608,91499.0,91498.0,0.04356]
[1763542685904,0.4701506,91507.0,91503.0,0.1529154]
[1763542685905,0.03924627,91504.0,91503.0,0.1529154]
[1763542686106,0.5132116,91507.0,91506.0,0.04356]
[1763542687200,0.40386,91507.0,91506.0,0.04356]
[1763542688705,0.3825,91507.0,91506.0,0.04356]
[1763542688896,0.03941018,91510.0,91509.0,0.02175]
[1763542689102,0.19181728,91510.0,91509.0,0.30748]
[1763542689404,0.21856069,91510.0,91509.0,0.30748]
[1763542689602,0.17931442,91510.0,91509.0,0.30748]
[1763542693618,0.02690732,91510.0,91509.0,0.30748]
[1763542693914,0.06996732,91510.0,91509.0,0.30748]
[1763542694216,0.02690732,91510.0,91509.0,0.30748]
[1763542694513,0.15795432,91510.0,91509.0,0.30748]
[1763542694714,0.04860732,91510.0,91509.0,0.30748]
[1763542696800,0.02690732,91510.0,91509.0,0.30748]
[1763542698717,0.04860732,91510.0,91509.0,0.30748]
[1763542699008,0.06996732,91510.0,91509.0,0.30748]
[1763542699417,0.17931432,91510.0,91509.0,0.30748]
[1763542700414,0.17931432,91510.0,91509.0,0.04356]
[1763542702105,0.04306,91509.0,91508.0,0.26396]
[1763542702310,0.06980341,91509.0,91508.0,0.26396]
[1763542702511,0.04306,91499.0,91498.0,0.40436]
[1763542702711,0.36096391,91510.0,91509.0,0.1529082]
[1763542702912,0.07111832,91510.0,91509.0,0.04356]
[1763542704919,0.07211832,91510.0,91509.0,0.04356]
[1763542706226,0.02793832,91510.0,91509.0,0.04356]
[1763542706815,0.04811832,91510.0,91509.0,0.04356]
[1763542707519,0.07059832,91510.0,91509.0,0.04356]
[1763542707916,0.02693832,91510.0,91509.0,0.04356]
[1763542708312,0.04811832,91510.0,91509.0,0.04356]
[1763542709826,0.07059832,91510.0,91509.0,0.04356]
[1763542710219,0.04811832,91510.0,91509.0,0.04356]
[1763542710422,0.07059832,91510.0,91509.0,0.04356]
[1763542712030,0.1539382,91509.0,91508.0,0.26392]
[1763542712214,0.18071261,91509.0,91508.0,0.26392]
[1763542713428,0.23960615,91509.0,91508.0,0.26392]
[1763542713924,0.18071261,91509.0,91508.0,0.30817]
[1763542714327,0.18171261,91509.0,91508.0,0.28576]
[1763542714724,0.18171261,91509.0,91508.0,0.30817]
[1763542715118,0.18171261,91509.0,91508.0,0.28633]
[1763542715319,0.1539514,91498.0,91497.0,0.38264]
[1763542715524,0.54152581,91498.0,91497.0,0.02184]
[1763542715929,0.54152581,91498.0,91497.0,0.04425]
[1763542716231,0.58087332,91498.0,91497.0,0.04425]
[1763542717146,0.54152581,91498.0,91497.0,0.04425]
[1763542717440,0.43216441,91498.0,91497.0,0.04425]
[1763542717945,0.02677441,91498.0,91497.0,0.04425]
[1763542721152,0.02677441,91498.0,91497.0,0.30817]
[1763542724443,0.07136441,91498.0,91497.0,0.30817]
[1763542725050,0.02677441,91498.0,91497.0,0.30817]
[1763542728954,0.07136441,91498.0,91497.0,0.04425]
[1763542729254,0.07136441,91498.0,91497.0,0.30817]
[1763542731260,0.02677441,91498.0,91497.0,0.4175326]
[1763542733146,0.02677441,91498.0,91497.0,0.30817]
[1763542733352,0.13613581,91498.0,91497.0,0.30817]
[1763542734258,0.02677441,91498.0,91497.0,0.30817]
[1763542735358,0.13613581,91498.0,91497.0,0.30817]
[1763542737262,0.02677441,91498.0,91497.0,0.4175325]
[1763542737661,0.02677441,91498.0,91497.0,0.30817]
[1763542738455,0.04818441,91498.0,91497.0,0.30817]
[1763542738860,0.07136441,91498.0,91497.0,0.04425]
[1763542739162,0.07136441,91498.0,91497.0,0.30817]
[1763542747565,0.47151192,91498.0,91497.0,0.04425]
[1763542747766,0.43216441,91498.0,91497.0,0.02184]
[1763542748161,0.4912012,91498.0,91497.0,0.02184]
[1763542748765,0.43216441,91498.0,91497.0,0.04453]
[1763542748961,0.02677441,91498.0,91497.0,0.04453]
[1763542749270,0.039355,91498.0,91497.0,0.04453]
[1763542749462,0.02777441,91498.0,91497.0,0.04453]
[1763542750273,0.02777441,91498.0,91497.0,0.40533]
[1763542750463,4.41e-06,91498.0,91497.0,0.40533]
[1763542750869,0.00100441,91498.0,91497.0,0.40533]
[1763542751567,4.41e-06,91498.0,91497.0,0.40533]
[1763542751771,4.41e-06,91498.0,91497.0,0.3608]
[1763542752173,0.1550986,91509.0,91504.0,0.1093537]
[1763542752374,0.1550986,91509.0,91508.0,0.04567]
[1763542764376,0.18147607,91509.0,91508.0,0.04567]
[1763542767678,0.1541685,91492.0,91491.0,0.15421351]
[1763542767887,0.18054597,91492.0,91491.0,0.41809351]
[1763542770685,0.07117747,91492.0,91491.0,0.41809351]
[1763542770884,0.07117747,91492.0,91491.0,0.30872391]
[1763542771184,0.07117747,91492.0,91491.0,0.41809361]
[1763542771482,0.07117747,91492.0,91491.0,0.30872391]
[1763542771781,0.07117747,91492.0,91491.0,0.30868391]
[1763542772784,0.03934248,91505.0,91504.0,0.1550942]
[1763542773084,0.03934248,91507.0,91506.0,0.1550918]
[1763542773976,0.06172248,91507.0,91506.0,0.1550918]
[1763542774977,0.03934248,91507.0,91506.0,0.1550918]
[1763542776280,0.03934248,91508.0,91507.0,0.04574]
[1763542776482,0.06172248,91508.0,91507.0,0.04574]
[1763542776880,0.00016391,91510.0,91505.0,0.01338]
[1763542776881,0.03950639,91510.0,91509.0,0.04574]
[1763542777184,0.00016391,91510.0,91509.0,0.04574]
[1763542777582,0.04568391,91510.0,91509.0,0.04574]
[1763542777784,0.02254391,91510.0,91509.0,0.04574]
[1763542777984,0.04568391,91510.0,91509.0,0.04574]
[1763542783392,0.15503091,91510.0,91509.0,0.04574]
[1763542784092,0.00016391,91510.0,91509.0,0.1550882]
[1763542784684,0.02616363,91510.0,91509.0,0.1550882]
[1763542786191,0.00016391,91510.0,91509.0,0.1550882]
[1763542786380,0.02254391,91510.0,91509.0,0.1550882]
[1763542787697,0.00016391,91510.0,91509.0,0.1550882]
[1763542791393,0.00016391,91510.0,91509.0,0.04574]
[1763542791590,0.02254391,91510.0,91509.0,0.04574]
[1763542792101,0.04568391,91510.0,91509.0,0.1550882]
[1763542799990,0.15503091,91510.0,91509.0,0.04574]
[1763542800303,0.15503091,91510.0,91509.0,0.02326]
[1763542800304,0.18103002,91510.0,91509.0,0.02326]
[1763542800602,0.18103002,91510.0,91509.0,0.3095]
[1763542802796,0.1093645,91496.0,91493.0,0.1093674]
[1763542803004,0.1533514,91498.0,91497.0,0.04419]
[1763542803206,0.17936536,91498.0,91497.0,0.04419]
[1763542805205,0.17936536,91498.0,91497.0,0.02114]
[1763542805405,0.17936536,91498.0,91497.0,0.04419]
[1763542805602,0.07000396,91498.0,91497.0,0.04419]
[1763542805803,0.02601396,91498.0,91497.0,0.40499]
[1763542806003,0.00016391,91510.0,91507.0,0.1093504]
[1763542806004,0.04399,91509.0,91507.0,0.1093504]
[1763542806204,0.02241,91509.0,91508.0,0.30795]
[1763542806502,0.02257391,91510.0,91509.0,0.1535382]
[1763542806707,0.07014236,91510.0,91509.0,0.1535382]
[1763542807103,0.07014236,91510.0,91509.0,0.5143382]
[1763542809007,0.07014236,91510.0,91509.0,0.40499]
[1763542809909,0.02615236,91510.0,91509.0,0.5143382]
[1763542810307,0.04856236,91510.0,91509.0,0.5143382]
[1763542811006,0.07014236,91510.0,91509.0,0.40499]
[1763542811912,0.07014236,91510.0,91509.0,0.5143382]
[1763542812106,0.07014236,91510.0,91509.0,0.40499]
[1763542814715,0.02615236,91510.0,91509.0,0.40499]
[1763542816310,2.36e-06,91510.0,91509.0,0.40499]
[1763542816507,0.04399,91522.0,91521.0,0.1535237]
[1763542816706,0.04399,91522.0,91521.0,0.4172837]
[1763542817111,0.04399,91522.0,91521.0,0.30795]
[1763542817714,0.04499,91522.0,91521.0,0.30795]
[1763542819517,0.04399,91522.0,91521.0,0.30795]
[1763542822019,0.1533225,91522.0,91521.0,0.30795]
[1763542822224,0.1533225,91522.0,91521.0,0.4172837]
[1763542822519,0.04399,91522.0,91521.0,0.4172837]
[1763542823713,0.04399,91522.0,91521.0,0.30795]
[1763542825122,0.04399,91522.0,91521.0,0.4172837]
[1763542828424,0.069843,91522.0,91521.0,0.4172837]
[1763542829814,0.069843,91522.0,91521.0,0.30795]
[1763542830216,0.025853,91522.0,91521.0,0.30795]
[1763542830516,0.047313,91522.0,91521.0,0.30795]
[1763542831526,0.068423,91522.0,91521.0,0.30795]
[1763542835330,0.04257,91522.0,91521.0,0.30795]
[1763542835623,0.06844679,91522.0,91521.0,0.30795]
[1763542840741,0.02587679,91522.0,91521.0,0.30795]
[1763542841432,0.04865679,91522.0,91521.0,0.30795]
[1763542842030,0.02587679,91522.0,91521.0,0.30795]
[1763542842535,0.17963929,91522.0,91521.0,0.30795]
[1763542844730,0.07030679,91522.0,91521.0,0.30795]
[1763542854747,0.07030679,91522.0,91521.0,0.4172837]
[1763542856847,0.02587679,91522.0,91521.0,0.4172837]
[1763542858548,0.02587679,91522.0,91521.0,0.30795]
[1763542859635,0.03934474,91522.0,91521.0,0.30795]
[1763542860245,0.1093276,91527.0,91522.0,0.1538825]
[1763542860246,0.03934474,91523.0,91522.0,0.1538825]
[1763542860841,0.02580169,91523.0,91522.0,0.1538825]
[1763542861642,0.03950834,91531.0,91530.0,0.1523529]
[1763542861942,0.0001636,91531.0,91530.0,0.77899093]
[1763542862945,0.06120474,91537.0,91536.0,0.1523458]
[1763542863144,0.08421474,91537.0,91536.0,0.4159858]
[1763542863348,0.04487,91537.0,91536.0,0.30667]
[1763542863549,0.04487,91537.0,91536.0,0.4159858]
[1763542863953,0.03934474,91538.0,91536.0,0.4159858]
[1763542864149,0.03934474,91538.0,91537.0,0.04303]
[1763542864349,0.03934474,91539.0,91538.0,0.1523434]
[1763542864552,0.03934474,91540.0,91539.0,0.04303]
[1763542864741,0.06120474,91541.0,91540.0,0.152341]
[1763542864941,0.06120474,91541.0,91540.0,0.15453903]
[1763542865451,0.04487,91541.0,91540.0,0.04522803]
[1763542866052,0.02186,91541.0,91540.0,0.04522803]
[1763542866254,0.02186,91542.0,91541.0,0.1523398]
[1763542866446,0.04487,91542.0,91541.0,0.1523398]
[1763542867047,0.06120474,91545.0,91544.0,0.1523362]
[1763542867249,0.03934474,91545.0,91544.0,0.4159362]
[1763542867447,0.03934474,91546.0,91545.0,0.04303]
[1763542867650,0.06120474,91546.0,91545.0,0.04303]
[1763542868256,0.04487,91546.0,91545.0,0.04303]
[1763542869460,0.04587,91546.0,91545.0,0.04303]
[1763542872254,0.04587,91546.0,91540.0,0.00219803]
[1763542872255,0.1541798,91541.0,91540.0,0.02346803]
[1763542872464,0.1541798,91541.0,91540.0,0.28706803]
[1763542872756,0.1541798,91541.0,91540.0,0.30882803]
[1763542873457,0.1551798,91541.0,91540.0,0.30882803]
[1763542873665,0.18077528,91541.0,91540.0,0.30882803]
[1763542874755,0.18077528,91541.0,91540.0,0.02346803]
[1763542874958,0.1541918,91531.0,91530.0,0.3608]
[1763542875253,0.17978728,91531.0,91530.0,0.62659803]
[1763542875553,0.17978728,91531.0,91530.0,0.64786803]
[1763542875955,0.17978728,91531.0,91530.0,0.66962803]
[1763542878845,0.17978728,91531.0,91530.0,0.00219803]
[1763542879055,0.17978728,91531.0,91530.0,0.26579803]
[1763542879255,0.17978728,91531.0,91530.0,0.2636]
[1763542886666,0.17978728,91531.0,91530.0,0.2864]
[1763542888049,0.04525,91530.0,91518.0,0.3608]
[1763542888250,0.04525,91530.0,91486.0,0.00027327]
[1763542888252,0.1546243,91487.0,91486.0,0.00027327]
[1763542888560,0.02302,91468.0,91467.0,0.04394]
[1763542888757,0.04525,91468.0,91467.0,0.30754]
[1763542889061,0.07068409,91468.0,91467.0,0.21559823]
[1763542889658,0.07068409,91468.0,91467.0,0.11198327]
[1763542890059,0.43148409,91468.0,91467.0,0.11198327]
[1763542891262,0.1546722,91447.0,91428.0,0.36842]
[1763542891460,0.1546722,91447.0,91446.0,0.02307339]
[1763542892357,0.15480135,91447.0,91446.0,0.02233339]
[1763542892554,0.15480135,91447.0,91446.0,9e-08]
[1763542892752,0.15480135,91447.0,91437.0,0.000164]
[1763542892753,0.1530933,91421.0,91420.0,0.3608]
[1763542892959,0.04375215,91421.0,91420.0,0.05813]
[1763542893256,1.54375215,91421.0,91420.0,0.06032803]
[1763542893655,1.90455215,91421.0,91420.0,0.04486]
[1763542893856,1.90455215,91421.0,91420.0,0.04705803]
[1763542894056,1.50011215,91421.0,91420.0,0.04705803]
[1763542894655,0.00011215,91421.0,91420.0,0.04705803]
[1763542894856,0.000164,91430.0,91429.0,0.04486]
[1763542895161,1.52969635,91430.0,91429.0,0.04486]
[1763542895361,0.40444,91454.0,91453.0,0.02206]
[1763542895558,0.43394065,91454.0,91453.0,0.02206]
[1763542895873,0.43400019,91454.0,91453.0,0.02206]
[1763542896164,0.04364,91441.0,91440.0,0.04486]
[1763542896355,0.04364,91432.0,91431.0,0.045024]
[1763542896558,0.04364,91432.0,91431.0,0.058294]
[1763542896758,0.04364,91432.0,91431.0,0.045024]
[1763542897255,0.04364,91432.0,91431.0,0.022224]
[1763542897456,0.04364,91432.0,91431.0,0.046024]
[1763542898462,0.05715,91440.0,91439.0,0.04486]
[1763542899061,0.05715,91440.0,91431.0,0.000164]
[1763542899265,0.04364,91432.0,91431.0,0.045024]
[1763542899462,0.04369954,91432.0,91431.0,0.045024]
[1763542899662,0.04369954,91432.0,91431.0,0.000164]
[1763542899867,0.04369954,91432.0,91419.0,0.3608]
[1763542899868,0.1530945,91420.0,91419.0,0.38286]
[1763542900053,0.1530945,91420.0,91419.0,0.40566]
[1763542900258,0.0211,91409.0,91408.0,0.38286]
[1763542900559,0.04364,91409.0,91408.0,0.38286]
[1763542900963,0.04364,91409.0,91408.0,0.40566]
[1763542901467,0.04364,91409.0,91408.0,0.40666]
[1763542901863,0.04364,91415.0,91414.0,0.04486]
[1763542902363,0.0001641,91418.0,91417.0,0.04486]
[1763542903766,5.954e-05,91432.0,91431.0,0.04486]
[1763542904265,0.04369954,91432.0,91431.0,0.04486]
[1763542904466,5.954e-05,91432.0,91431.0,0.04486]
[1763542905373,0.04369954,91432.0,91431.0,0.04486]
[1763542908374,0.0731673,91432.0,91431.0,0.04486]
[1763542910176,0.1826074,91432.0,91431.0,0.05813]
[1763542910371,0.0506273,91432.0,91431.0,0.05813]
[1763542910569,0.0295273,91432.0,91431.0,0.05813]
[1763542910765,0.0731673,91432.0,91431.0,0.04486]
[1763542911677,0.0731673,91432.0,91431.0,0.05813]
[1763542912777,0.0295273,91432.0,91431.0,0.1675713]
[1763542912971,0.0295273,91432.0,91431.0,0.05813]
[1763542914870,0.0295273,91432.0,91430.0,0.36299803]
[1763542915079,0.02946776,91431.0,91430.0,0.00589267]
[1763542917093,0.16000906,91431.0,91430.0,0.00589267]
[1763542917294,0.18254906,91431.0,91430.0,0.00589267]
[1763542917588,0.18254906,91431.0,91430.0,0.00073267]
[1763542917786,0.54334906,91431.0,91430.0,0.00073267]
[1763542917985,0.04583803,91430.0,91429.0,0.26412]
[1763542918187,0.07530579,91430.0,91429.0,0.2667]
[1763542918388,0.07530579,91430.0,91429.0,0.26412]
[1763542918593,0.07530579,91430.0,91429.0,0.20499077]
[1763542918894,0.17318081,91430.0,91429.0,0.11629544]
[1763542919287,0.07530579,91430.0,91429.0,0.11629544]
[1763542920292,0.07530579,91430.0,91429.0,0.12145544]
[1763542920993,0.07530579,91430.0,91429.0,0.11629544]
[1763542922888,0.05693,91422.0,91421.0,0.0499641]
[1763542923089,0.55664986,91422.0,91421.0,0.0499641]
[1763542924790,0.63531093,91422.0,91421.0,0.0499641]
[1763542924996,0.55664986,91422.0,91421.0,0.0499641]
[1763542925198,0.55664986,91422.0,91421.0,0.0001641]
[1763542925395,0.55664986,91422.0,91421.0,0.0499641]
[1763542925599,0.5959916,91422.0,91421.0,0.0001641]
[1763542926094,0.5959916,91422.0,91406.0,0.00027351]
[1763542926095,0.05693,91407.0,91406.0,0.00027351]
[1763542926400,0.05693,91407.0,91379.0,0.3608]
[1763542926401,0.05693,91386.0,91385.0,0.05901261]